Cogmind - Beta 11.1 @@@ ROGUE MODE // 2022.12.10 @ 19:48:51 Player: M4NZ Result: Destroyed by S-27 Virus with Autogun Performance ------------- Evolutions (3) 1500 Regions Visited (5) 1000 Robots Destroyed (56) 280 Value Destroyed (1243) 1243 Prototype IDs (3) 60 Alien Tech Used (0) 0 Bonus (4) 4 TOTAL SCORE: 4087 Bonus ------- High Alert Combat Kills 4 Cogmind --------- Core Integrity 0/700 Matter 246/300 Energy 98/100 System Corruption 1% Temperature Cool (4) Movement Flying (32) Location -7/Lower Caves Parts ------- > --- POWER (1) -------- (None) > --- PROPULSION (4) --- VTOL Module Cooled VTOL Module > --- UTILITY (6) ------ Weight Redist. System Improved Signal Interpreter Terrain Scan Processor Advanced Targeting Computer Advanced ECM Suite > --- WEAPON (2) ------- (None) > --- INVENTORY (5) ---- Improved Cooling System Advanced Terrain Scan Processor Shock Absorption System Hacking Suite Dynamic Insulation System Peak State ------------ > --- POWER ------------ Light Ion Engine > --- PROPULSION ------- Wheel Wheel Wheel Compact Wheel > --- UTILITY ---------- Large Storage Unit Improved Signal Interpreter Advanced Targeting Computer Weapon Cycler Utility Shielding Hardened Light Armor Plating > --- WEAPON ----------- Improved EM Shotgun Improved Assault Rifle > --- INVENTORY -------- Light Nuclear Core Aluminum Leg Wheel VTOL Module Improved Cooling System Medium Matter Pod Terrain Scan Processor Advanced Terrain Scan Processor Seismic Detector ECM Suite Core Shielding Light Armor Plating Shock Absorption System Dynamic Insulation System [Rating: 28] Favorites ----------- Power Light Ion Engine Engine Light Ion Engine Power Core Light Nuclear Core Propulsion Aluminum Leg Leg Aluminum Leg Wheel Wheel Flight Unit VTOL Module Utility Large Storage Unit Device Seismic Detector Storage Large Storage Unit Processor Improved Signal Interpreter Protection Utility Shielding Weapon Heavy Assault Rifle Energy Gun Beam Rifle Energy Cannon Heavy Particle Cannon Ballistic Gun Heavy Assault Rifle Launcher Grenade Launcher Build | -11 -10 -9 -8 -7 -7 ------- Run | Scr Mat Mat Mat Fac Low Slots Evolved 6 | . . 2 2 2 . Power . | . . . . . . Propulsion 2 | . . 2 . . . Utility 4 | . . . 2 2 . Weapon . | . . . . . . Parts Attached 110 | 7 9 26 25 43 . Power 16 | 1 . 4 6 5 . Engine 15 | 1 . 4 6 4 . Core 1 | . . . . 1 . Reactor . | . . . . . . Propulsion 48 | 2 4 12 9 21 . Treads . | . . . . . . Leg 35 | 2 4 12 9 8 . Wheel 9 | . . . . 9 . Hover . | . . . . . . Flight 4 | . . . . 4 . Utility 26 | 1 3 3 8 11 . Device 13 | . 1 1 4 7 . Storage 3 | 1 1 1 . . . Processor 3 | . . . 1 2 . Hackware . | . . . . . . Protection 7 | . 1 1 3 2 . Artifact . | . . . . . . Weapon 20 | 3 2 7 2 6 . Energy Gun 9 | 2 1 2 1 3 . Energy Cannon 3 | . . 3 . . . Ballistic Gun 6 | 1 1 1 1 2 . Ballistic Cannon . | . . . . . . Launcher 2 | . . 1 . 1 . Special Weapon . | . . . . . . Impact Weapon . | . . . . . . Slashing Weapon . | . . . . . . Piercing Weapon . | . . . . . . Special Melee Weapon . | . . . . . . Unidentified Prototypes 3 | . . . . 3 . Parts Lost 41 | . . 5 8 28 . Power 7 | . . 1 2 4 . Propulsion 21 | . . 3 3 15 . Utility 4 | . . . 2 2 . Weapon 9 | . . 1 1 7 . Highest Loss Streak 13 | . . 3 5 13 . To Critical Strikes . | . . . . . . Average Slot Usage (%) 94 | . 94 98 98 89 53 Engine 9 | . 14 10 8 5 . Leg 29 | . 28 43 35 16 . Wheel 2 | . . . . 8 . Device 10 | . 4 8 22 8 15 Storage 9 | . 14 11 9 6 . Processor 6 | . . . . 17 23 Protection 5 | . 4 2 4 10 . Energy Gun 5 | . 14 2 2 4 . Energy Cannon 3 | . . 6 6 . . Ballistic Gun 9 | . 14 10 8 6 . Naked Turns . | . . . . . . Heaviest Build 42 | 11 20 37 42 38 3 Greatest Support 46 | 20 20 40 40 46 9 Greatest Overweight (x) 11 | . . 1 1 11 . Average Overweight (x) . | . . . . . . Largest Inventory Capacity 15 | 8 10 15 15 15 5 Average Capacity 13 | 7 8 14 15 14 5 Most Carried 15 | 1 10 15 15 15 5 Average Carried 11 | . 7 13 13 12 5 Final Capacity 15 | 8 10 15 15 5 5 Final Carried 15 | 1 10 15 11 5 5 Class Distribution -------------------- 55% | Scavenger-Mutant 41% | Mutant Dominant Class ---------------- Mutant | -10/Materials Mutant | -9/Materials Scavenger-Mutant | -8/Materials Scavenger-Mutant | -7/Factory Sprinter | -7/Lower Caves Resources | -11 -10 -9 -8 -7 -7 ----------- Run | Scr Mat Mat Mat Fac Low Matter Collected 1761 | 194 312 489 333 433 . Remotely . | . . . . . . Salvage Created 1988 | . 253 390 553 792 . Parts 132 | . 24 23 35 50 . Haulers Intercepted . | . . . . . . Recyclers Shooed 7 | . 2 1 1 3 . Parts Field Recycled . | . . . . . . Retrieved Matter . | . . . . . . Parts Self-Destructed . | . . . . . . Prevented . | . . . . . . Kills | -11 -10 -9 -8 -7 -7 ------- Run | Scr Mat Mat Mat Fac Low Combat Hostiles Destroyed 37 | . 5 9 16 7 . Guns 26 | . 5 4 10 7 . Cannons 10 | . . 4 6 . . AOE 1 | . . 1 . . . Classes Destroyed 7 | . 3 4 . . . Worker 3 | . 1 . . 2 . Builder 9 | . 2 . 1 6 . Recycler 6 | . . 2 . 4 . Watcher 1 | . . 1 . . . Swarmer 16 | . . 3 9 4 . Grunt 17 | . 5 4 5 3 . Sentry 4 | . . 2 2 . . Best Kill Streak 11 | . 3 4 4 11 . Combat Bots Only 4 | . 2 3 4 2 . Max Kills in Single Turn 2 | . 1 2 2 2 . Gunslinging . | . . . . . . Exploded 1 | . . 1 . . . Melee . | . . . . . . Uniques/NPCs Destroyed . | . . . . . . Combat | -11 -10 -9 -8 -7 -7 -------- Run | Scr Mat Mat Mat Fac Low Damage Taken 4756 | . 262 980 947 2524 43 Core 1097 | . 56 154 175 669 43 Absorbed by Shields . | . . . . . . Redirected to Shielding 60 | . . . 16 44 . Core Remaining (%) 76 | 100 77 61 68 . . Volleys Fired 169 | . 22 37 44 66 . Largest 2 | . 2 2 2 2 . Hottest 98 | . 79 98 98 79 . Shots Fired 290 | . 44 65 85 96 . Gun 232 | . 44 30 62 96 . Cannon 43 | . . 20 23 . . Launcher 15 | . . 15 . . . Special . | . . . . . . Kinetic 152 | . 22 30 41 59 . Thermal 103 | . 22 20 44 17 . Explosive 15 | . . 15 . . . Electromagnetic 20 | . . . . 20 . Robot Hit Streak 19 | . 7 11 9 19 . Robot Miss Streak 5 | . 2 4 3 5 . Penetration Max . | . . . . . . Secondary Targets . | . . . . . . Shots Hit Robots 185 | . 26 35 57 67 . Core Hits 84 | . 10 20 22 32 . Critical Kills 1 | . 1 . . . . Critical Parts Destroyed . | . . . . . . Critical Strikes 8 | . 4 . 3 1 . Burn 7 | . 3 . 3 1 . Destroy 1 | . 1 . . . . Melee Attacks . | . . . . . . Impact . | . . . . . . Slashing . | . . . . . . Piercing . | . . . . . . Sneak Attacks . | . . . . . . Combat Hostiles . | . . . . . . Follow-up Attacks . | . . . . . . Damage Inflicted 3553 | . 382 924 1102 1145 . Guns 2347 | . 382 236 650 1079 . Cannons 793 | . . 341 452 . . Explosions 390 | . . 347 . 43 . Melee . | . . . . . . Ramming 23 | . . . . 23 . Kinetic 1552 | . 208 236 470 638 . Thermal 1365 | . 174 341 632 218 . Explosive 347 | . . 347 . . . Electromagnetic 266 | . . . . 266 . Impact . | . . . . . . Slashing . | . . . . . . Piercing . | . . . . . . Highest Corruption 2 | . . 2 . 1 1 Average Corruption 1 | . . 1 . 1 1 Corruption Purged . | . . . . . . Corruption Blocked . | . . . . . . Effects 7 | . . 6 . 1 . Matter Fused 2 | . . 2 . . . Heat Flow Errors 1 | . . 1 . . . Energy Discharges 1 | . . 1 . . . Data Loss (major) 1 | . . 1 . . . Misfires 2 | . . 1 . 1 . Overload Shots . | . . . . . . Overflow Damage 25 | . . 9 16 . . Projectiles 24 | . . 8 16 . . Explosions 1 | . . 1 . . . Melee . | . . . . . . Knockbacks . | . . . . . . Impact . | . . . . . . Kinetic . | . . . . . . Secondary . | . . . . . . Self-Inflicted Damage 112 | . . 75 . 37 . Shots 4 | . . 3 . 1 . Rammed 1 | . . . . 1 . Targets Rammed 4 | . . . . 4 . Kicked 3 | . . . . 3 . Crushed . | . . . . . . Highest Temperature 252 | . 231 252 248 116 . Average Temperature 74 | . 77 84 93 30 . Received Heat Transfer 1275 | . 138 312 477 348 . Effects 2 | . . 2 . . . Energy Bleed 2 | . . 2 . . . Siege Activations . | . . . . . . Robots Corrupted . | . . . . . . Combat Hostiles . | . . . . . . Parts Fried . | . . . . . . Impact Corruptions . | . . . . . . Robots Melted . | . . . . . . Combat Hostiles . | . . . . . . Parts Melted 6 | . 1 1 3 1 . Heat Transferred 3047 | . 666 518 1295 568 . Parts Sabotaged . | . . . . . . Parts Stolen . | . . . . . . Parts Stripped . | . . . . . . Power Chain Reactions 1 | . . . . 1 . Missiles Intercepted . | . . . . . . Alert | -11 -10 -9 -8 -7 -7 ------- Run | Scr Mat Mat Mat Fac Low Peak Influence 414 | . 176 289 414 347 . Initial 146 | . . 12 58 146 . Average 148 | . 58 173 223 136 . Maximum Alert Level 2 | . . 1 2 1 . Low Security (%) 70 | 100 100 58 36 84 . Level 1 29 | . . 41 62 15 . Level 2 . | . . . . . . Level 3 . | . . . . . . Level 4 . | . . . . . . Level 5 . | . . . . . . High Security . | . . . . . . Max Security . | . . . . . . Squads Dispatched 12 | . 1 4 2 5 . Investigation 4 | . . 3 . 1 . Extermination 2 | . . . . 2 . Reinforcement 6 | . 1 1 2 2 . Assault . | . . . . . . Garrison . | . . . . . . Intercept . | . . . . . . Searches Triggered . | . . . . . . Construction Impeded 3 | . . 1 . 2 . Haulers Reinforced . | . . . . . . Active Scanning Responses . | . . . . . . Cargo Convoy Interrupts 1 | . . . . 1 . Stealth | -11 -10 -9 -8 -7 -7 --------- Run | Scr Mat Mat Mat Fac Low Distress Signals 6 | . 2 2 . 2 . Communications Jammed . | . . . . . . Distress Signals . | . . . . . . Times Spotted 108 | . 11 24 23 46 4 Peak Tracking Total 10 | . 3 10 5 9 5 Tactical Retreats 18 | . 1 2 2 13 . Traps | -11 -10 -9 -8 -7 -7 ------- Run | Scr Mat Mat Mat Fac Low Traps Triggered 4 | . . 3 . 1 . Indirectly . | . . . . . . Trap Hack Attempts . | . . . . . . Triggered . | . . . . . . Disarmed 6 | . . . 6 . . Reprogrammed . | . . . . . . Reused . | . . . . . . Traps Extracted . | . . . . . . Installed . | . . . . . . Triggered 2 | . . . . 1 1 Machines | -11 -10 -9 -8 -7 -7 ---------- Run | Scr Mat Mat Mat Fac Low Machines Disabled 4 | . . 2 1 1 . Max in Single Turn 1 | . . 1 1 1 . Machines Sabotaged . | . . . . . . Garrisons Compromised 1 | . . . . 1 . Overloaded Fab Kills . | . . . . . . Hacking | -11 -10 -9 -8 -7 -7 --------- Run | Scr Mat Mat Mat Fac Low Machines Accessed 14 | . 2 5 5 2 . Terminals 10 | . 2 3 4 1 . Fabricators . | . . . . . . Repair Stations 2 | . . 1 . 1 . Recycling Units 1 | . . 1 . . . Scanalyzers 1 | . . . 1 . . Garrison Access . | . . . . . . Total Hacks 40 | . 4 16 16 4 . Successful 18 | . . 8 8 2 . Failed 22 | . 4 8 8 2 . Catastrophic 1 | . 1 . . . . Database Lockouts . | . . . . . . Manual . | . . . . . . Terminals 27 | . 4 9 13 1 . Fabricators . | . . . . . . Repair Stations 7 | . . 4 . 3 . Recycling Units 3 | . . 3 . . . Scanalyzers 3 | . . . 3 . . Garrison Access . | . . . . . . Terminal Hacks 12 | . . 5 6 1 . Level Access Points 1 | . . . 1 . . Emergency Access Points 1 | . . 1 . . . Alert Level 3 | . . 2 1 . . Unreport Threat 1 | . . 1 . . . Locate Traps 1 | . . . 1 . . Disarm Traps 2 | . . . 2 . . Zone Layout 3 | . . 1 1 1 . Fabricator Hacks . | . . . . . . Repair Station Hacks 2 | . . 1 . 1 . Scan Component 2 | . . 1 . 1 . Recycling Unit Hacks 2 | . . 2 . . . Report Inventory 1 | . . 1 . . . Retrieve Components 1 | . . 1 . . . Scanalyzer 2 | . . . 2 . . Insert Component 1 | . . . 1 . . Analyze 1 | . . . 1 . . Garrison Access Hacks . | . . . . . . Unauthorized Hacks . | . . . . . . Terminals . | . . . . . . Fabricators . | . . . . . . Repair Stations . | . . . . . . Recycling Units . | . . . . . . Scanalyzers . | . . . . . . Garrison Access . | . . . . . . Data Cores Recovered . | . . . . . . Used . | . . . . . . Hacking Detections 10 | . 2 4 3 1 . Full Trace Events 3 | . . 2 . 1 . Feedback Events . | . . . . . . Feedback Blocked . | . . . . . . Robot Schematics Acquired . | . . . . . . Robots Built . | . . . . . . Authchips . | . . . . . . Time . | . . . . . . Total Robot Build Rating . | . . . . . . Part Schematics Acquired 1 | . . . 1 . . Parts Built . | . . . . . . Authchips . | . . . . . . Time . | . . . . . . Total Part Build Rating . | . . . . . . Parts Repaired . | . . . . . . Time . | . . . . . . Parts Recycled . | . . . . . . Recycled Matter . | . . . . . . Retrieved Matter . | . . . . . . Retrieved Components 10 | . . 10 . . . Parts Scanalyzed 1 | . . . 1 . . Part Schematics Acquired 1 | . . . 1 . . Parts Damaged . | . . . . . . Bothacking | -11 -10 -9 -8 -7 -7 ------------ Run | Scr Mat Mat Mat Fac Low Used RIF Installer . | . . . . . . Robots Hacked . | . . . . . . Non-combat . | . . . . . . Combat . | . . . . . . Robot Hacks Applied . | . . . . . . Relay Couplers Released . | . . . . . . Fabnet Peak Effective % . | . . . . . . Robots Rewired . | . . . . . . Allies Hacked . | . . . . . . Hacks Repelled . | . . . . . . Allies | -11 -10 -9 -8 -7 -7 -------- Run | Scr Mat Mat Mat Fac Low Total Allies . | . . . . . . Largest Group . | . . . . . . Highest-Rated Group . | . . . . . . Highest-Rated Ally . | . . . . . . Total Orders . | . . . . . . Ally Attacks . | . . . . . . Total Damage . | . . . . . . Kills . | . . . . . . Allies Corrupted . | . . . . . . Allies Melted . | . . . . . . Intel | -11 -10 -9 -8 -7 -7 ------- Run | Scr Mat Mat Mat Fac Low Robot Analysis Total . | . . . . . . Derelict Logs Recovered . | . . . . . . Drone Launches . | . . . . . . Drone Recoveries . | . . . . . . Exploration | -11 -10 -9 -8 -7 -7 ------------- Run | Scr Mat Mat Mat Fac Low Turns Passed 3397 | 56 579 920 688 1101 53 Spaces Moved 2394 | 45 343 615 312 914 165 Core 14 | 13 . . . 1 . Treads . | . . . . . . Legs 1676 | 32 343 615 312 374 . Wheels 343 | . . . . 343 . Hover . | . . . . . . Flight 361 | . . . . 196 165 Fastest Speed 32 | 50 120 120 120 32 32 Average Speed 106 | 99 120 121 145 91 32 Slowest Speed 600 | 120 120 190 190 600 32 Overloaded Moves . | . . . . . . Propulsion Burnouts . | . . . . . . Robots Hopped 3 | . . . . 3 . Cave-ins Triggered . | . . . . . . Exploration Rate (%) 27 | 4 46 41 24 31 20 Regions Visited 5 Branch Regions 1 Pre-discovered Areas . | . . . . . . Known Exits Taken 2 | . . . 1 1 . Unknown Exits Taken 3 | 1 1 1 . . . Scrap Searched . | . . . . . . Spaces Dug . | . . . . . . Terrain Destroyed 66 | . . 60 5 1 . Melee . | . . . . . . Projectile 10 | . . 5 5 . . AOE 56 | . . 55 . 1 . Terrain Rammed . | . . . . . . Walls Destroyed . | . . . . . . Machines Disabled . | . . . . . . Actions | -11 -10 -9 -8 -7 -7 --------- Run | Scr Mat Mat Mat Fac Low Total 2967 | 52 473 728 460 1089 165 Wait 201 | . 74 24 67 36 . Move 2383 | 44 342 614 311 907 165 Hop 3 | . . . . 3 . Pick Up 44 | 1 13 12 5 13 . Fast Attach 27 | 6 2 4 2 13 . Attach 37 | . 1 7 14 15 . Detach 9 | . 2 2 4 1 . Swap 46 | 1 6 15 9 15 . Drop 39 | . 11 13 4 11 . Fire 169 | . 22 37 44 66 . Melee . | . . . . . . Ram 1 | . . . . 1 . Kick 3 | . . . . 3 . Crush . | . . . . . . Escape Stasis 5 | . . . . 5 . Rewire . | . . . . . . Trap . | . . . . . . Miscellaneous . | . . . . . . Route ------- -11/Scrapyard -10/Materials (discovered 2 exits: *Mat / [*Min]) -9/Materials -8/Materials (discovered 3 exits: *Fac x3) -7/Factory -7/Lower Caves History --------- Turn | Location | Event 10 | -11/Scrapyard | Discovered new exit (range 16) 57 | -11/Scrapyard | Entered Materials 216 | -10/Materials | Discovered new exit (range 11) 313 | -10/Materials | Build established: Mutant 580 | -10/Materials | Discovered new exit (range 11) 636 | -10/Materials | Entered another Materials area 636 | -9/Materials | Evolved 2 slots: Propulsion x2 1273 | -9/Materials | Lost 3 parts (3n) 1296 | -9/Materials | Discovered new exit (range 15) 1549 | -9/Materials | Build established: Scavenger-Mutant 1556 | -9/Materials | Entered another Materials area 1556 | -8/Materials | Evolved 2 slots: Utility x2 2033 | -8/Materials | Identified exit to Factory 2213 | -8/Materials | Lost 5 parts (1p3n1u) 2244 | -8/Materials | Entered Factory 2244 | -7/Factory | Evolved 2 slots: Utility x2 2533 | -7/Factory | Lost 3 parts (3n) 2876 | -7/Factory | Lost 7 parts (1p4n2w) 3133 | -7/Factory | Lost 3 parts (1n1u1w) 3152 | -7/Factory | Cargo convoy interrupted 3266 | -7/Factory | Core integrity fell below 50% 3277 | -7/Factory | Core integrity fell below 20% 3315 | -7/Factory | Lost 13 parts (3p7n1u2w) 3338 | -7/Factory | Discovered new exit (range 4) 3339 | -7/Factory | Identified exit to Lower Caves 3345 | -7/Factory | Entered Lower Caves 3398 | -7/Lower Caves | Destroyed by S-27 Virus with Autogun Last Messages --------------- 03281_ S-27 Virus destroyed. 03281_ U-05 Engineer lays Concrete. 03283_ Acquired VTOL Module. 03284_ U-05 Engineer lays Concrete. 03284_ VTOL Module destroyed. 03285_ U-05 Engineer lays Concrete. 03307_ Acquired Prototype Flight Unit. 03307_ Identified Cld. VTOL Module. 03325_ Acquired Adv. ECM Suite. 03327_ System corrupted: FCS attempts to trigger Autogun. 03327_ System corrupted: Autogun misfires. 03329_ Autogun destroyed. 03338_ EXIT=FOUND 03339_ EXIT=IDENTIFIED: LOWER CAVES LOCATION=LOWER CAVES GOAL=ESCAPE 03346_ 9G-CL8(k) breaks down the debris. 03349_ PH-DAV(k) breaks down the debris. 03395_ Slug penetrates Wall. 03395_ S-27 Virus springs to life. Map ----- +----------------------------------------------------+ | ?????????????????????????????????????????????????? | | ?????????????????????????????????????????????????? | | ?????????????????????????????????????????????????? | | ?????????????????????????????????????????????????? | | ?????????????????????????????????????????????????? | | ?????????????????????????????????????????????????? | | ?????????????????????????????????????????????????? | | ?????????????????????????????????????????????????? | | ?????????????????????????????????????????????????? | | ?????????????????????????????????????????????????? | | ?????????????????????????????????????????????????? | | ?????????????????????????????????????????????????? | | ?????????????????????????????????????????????????? | | ?????????????????????????????????????????????????? | | ?????????????????????????????????????????????????? | | ?????????????????????????????????????????????????? | | ?????????????????????????????????????????????????? | | ?????????????????????????????????????????????????? | | ?????????????????????????????????????????????????? | | ?????????????????????????????????????????????????? | | ?????????????????????????????????????????????????? | | ?????????????????????????????????????????????????? | | ?????????????????????????????????????????????????? | | ?????###?????????????????????????????????????????? | | ?????# ######?????????##########?????????????????? | | ####?# ## #???????### @ #?????????????????? | | ### ##??##### #?????????????????? | | #### #?????????????????? | | #????????????? | | ### ## #????????????? | | ##?## s ###?# #????????????? | | ##???# ss ###??# ####????????????? | | #????# ### ### #??? ##???????????????? | | ####?# #" # ### #????????????????? | | ### #" # #???????????????? | | #" # #???????????????? | | #" ## ???????????????? | | #" ?? # #### #??????????????? | | ### # #""??""# ##???? ?# ????????????????? | | #### # ######## #??????#???????????????????? | | ??# # #??????????????????????????? | | ??# ##### ###????????????????????????? | | ??# #### ##???????????????????????? | | ??## ##### ##??????????????????????? | | ???## #???# ##?????????????????????? | | ????# ### #???## ##????????????????????? | | ????# ##?# #????##### #????????????????????? | | ????# ###??# #????????# ##???????????????????? | | ????# #????# #?????##### ####????????????????? | | ?#### ##??## #????## ## ##???????????????? | +----------------------------------------------------+ Best States ------------- Heat Dissipation 34 Energy Generation 14 Energy Capacity 265 Matter Stores 300 Matter Capacity 300 Sight Range 16 Terrain Scan Range 14 Terrain Scan Density 85 ECM Strength 2 Additional Mass Support 6 Armor Coverage 150 Utility Shielding 33 Weapon Shielding 33 Weapon Cycling 15 Evasion (%) 63 Targeting Accuracy 8 Particle Charging 15 Item Schematics ----------------- Imp. Ion Engine | -8/Materials | Scanalyzed Robot Schematics ------------------ None Fabricated ------------ Nothing Alien Tech Used ----------------- None Achievements -------------- Hey, That's Mine! Challenges ------------ None Game ------ Seed PrecisionFusionDevice Manual? 0 Play Time 01:08:46 Cumulative 28.1 hours Start 2022.12.10 @ 18:39:00 End 2022.12.10 @ 19:48:51 Sessions 1 Manual Loads 0 Difficulty Rogue Special Mode None Game No. 27 Rogue 27 Adventurer 0 Explorer 0 Win Type - Total 0 Types 0/0/0/0/0/0/0/0/0 Lore% 10 Gallery% 23 Achievement% 15 Wizard Run 0 Options --------- ASCII 0 Keyboard 1 Movement Arrows Keybinds 0 Fullscreen 1 Font 24/Smallcaps Map View 76x50 Tactical HUD 1 Map Filters NONE Filters NONE Steam 1 RUN: 9b56fbaa-55a2-42ac-a9e0-0cfd314f8893